{"text_format":"3","workbook":"xlsx","n_sheets":2,"sheets":["Sākums","Klientu ienesīgums"],"not_rendered":{"charts":1},"read":"whole","date_system":"1900"}

{"sheet":"Sākums","index":0,"n_rows":7,"n_cols":2,"rows_kept":7}
[null,"PAR ŠO VEIDNI"]
[null,"Izmantojiet šo klientu ienesīguma analīze, lai izsekotu klientu aktivitāte, pārdošanas izmaksas un citas izmaksas."]
[null,"Tabulās ievadiet informāciju, piemēram, uzņēmuma nosaukums, datums un citu detalizētu informāciju."]
[null,"Vērtības šūnās ar formulām un rādītāju kopsavilkums vērtību tabulā tiek automātiski aprēķinātas un diagramma tiek atjaunināta."]
[null,"Piezīme.  "]
[null,"Papildu norādījumi ir sniegti kolonnā A darblapā KLIENTU IENESĪGUMS. Šis teksts ir paslēpts ar nolūku. Lai tekstu noņemtu, atlasiet kolonnu A, pēc tam atlasiet DZĒST. Lai parādītu slēpto tekstu, atlasiet kolonnu A, pēc tam nomainiet fonta krāsu."]
[null,"Lai iegūtu papildinformāciju par tabulām šajā darblapā, nospiediet taustiņu SHIFT un pēc tam F10 tabulā, atlasiet opciju TABULA un pēc tam atlasiet ALTERNATĪVAIS TEKSTS."]

{"sheet":"Klientu ienesīgums","index":1,"n_rows":37,"n_cols":6,"rows_kept":37,"merged":[[36,1,36,5]]}
["Šajā darblapā izveidojiet klientu ienesīguma analīze. Šīs kolonnas šūnās ir noderīgi norādījumi par to, kā lietot šo darblapu. Bultiņa uz leju, lai sāktu darbu."]
["Šūnā pa labi ievadiet uzņēmuma nosaukums.","Uzņēmuma nosaukums"]
["Šīs darblapas nosaukums ir šūnā pa labi.","Klientu ienesīguma analīze"]
["Šūnā pa labi ievadiet datums.","Datums"]
["Šūnā pa labi ir padoms.","Pelēkās šūnas tiks aprēķinātas jūsu vietā. Nav nepieciešams tajās neko ievadīt."]
["Ievadiet informāciju klientu aktivitāte tabulā, kas sākas šūnā pa labi. Nākamais norādījums ir šūnā A12.","Klientu aktivitāte:","Segmenta nosaukums 1","Segmenta nosaukums 2","Segmenta nosaukums 3","Kopā"]
[null,"Aktīvo klientu skaits — perioda sākumā",5,8,8,{"$f":"SUM(C7:E7)","v":21}]
[null,"Pievienoto klientu skaits",2,4,4,{"$f":"SUM(C8:E8)","v":10}]
[null,"Zaudēto/pārtraukto klientu skaits",{"v":-1,"d":"-1 "},{"v":-2,"d":"-2 "},{"v":-2,"d":"-2 "},{"$f":"SUM(C9:E9)","v":{"v":-5,"d":"-5 "}}]
[null,"Aktīvo klientu skaits — perioda beigās",{"$f":"SUBTOTAL(109,Klientu_aktivitāte[Segmenta nosaukums 1])","v":6},{"$f":"SUBTOTAL(109,Klientu_aktivitāte[Segmenta nosaukums 2])","v":10},{"$f":"SUBTOTAL(109,Klientu_aktivitāte[Segmenta nosaukums 3])","v":10},{"$f":"SUBTOTAL(109,Klientu_aktivitāte[Kopā])","v":26}]
[]
["Ievadiet informāciju ienesīguma analīze tabulā, kas sākas šūnā pa labi. Nākamais norādījums ir šūnā A16.","Ienesīguma analīze:","Segmenta nosaukums 1","Segmenta nosaukums 2","Segmenta nosaukums 3","Kopā"]
[null,"Ieņēmumi segmentā",{"v":1500000,"d":"1,500,000.00 EUR"},{"v":1800000,"d":"1,800,000.00 EUR"},{"v":2500000,"d":"2,500,000.00 EUR"},{"$f":"SUM(Ienesīguma_analīze[[#This Row],[Segmenta nosaukums 1]:[Segmenta nosaukums 3]])","v":{"v":5800000,"d":"5,800,000.00 EUR"}}]
[null,"Vērtēšana",{"$f":"+C13/$F$13","v":{"v":0.25862068965517243,"d":"26%"}},{"$f":"+D13/$F$13","v":{"v":0.3103448275862069,"d":"31%"}},{"$f":"+E13/$F$13","v":{"v":0.43103448275862066,"d":"43%"}},{"$f":"SUM(Ienesīguma_analīze[[#This Row],[Segmenta nosaukums 1]:[Segmenta nosaukums 3]])","v":{"v":1,"d":"100%"}}]
[]
["Ievadiet informāciju pārdošanas izmaksas tabulā, kas sākas šūnā pa labi. Nākamais norādījums ir šūnā A23.","Pārdošanas izmaksas:","Segmenta nosaukums 1","Segmenta nosaukums 2","Segmenta nosaukums 3","Kopā"]
[null,"Ikdienas pakalpojumu un atbalsta izmaksas",{"v":1000000,"d":"1,000,000.00 EUR"},{"v":1400000,"d":"1,400,000.00 EUR"},{"v":1400000,"d":"1,400,000.00 EUR"},{"$f":"SUM(C17:E17)","v":{"v":3800000,"d":"3,800,000.00 EUR"}}]
[null,"Citas tiešās klientu izmaksas",{"v":200000,"d":"200,000.00 EUR"},{"v":100000,"d":"100,000.00 EUR"},{"v":100000,"d":"100,000.00 EUR"},{"$f":"SUM(C18:E18)","v":{"v":400000,"d":"400,000.00 EUR"}}]
[null,"Kopējās pārdošanas izmaksas",{"$f":"SUM(C17:C18)","v":{"v":1200000,"d":"1,200,000.00 EUR"}},{"$f":"SUM(D17:D18)","v":{"v":1500000,"d":"1,500,000.00 EUR"}},{"$f":"SUM(E17:E18)","v":{"v":1500000,"d":"1,500,000.00 EUR"}},{"$f":"SUM(F17:F18)","v":{"v":4200000,"d":"4,200,000.00 EUR"}}]
[null,"Bruto peļņa",{"$f":"+C13-C19","v":{"v":300000,"d":"300,000.00 EUR"}},{"$f":"+D13-D19","v":{"v":300000,"d":"300,000.00 EUR"}},{"$f":"+E13-E19","v":{"v":1000000,"d":"1,000,000.00 EUR"}},{"$f":"+F13-F19","v":{"v":1600000,"d":"1,600,000.00 EUR"}}]
[null,"Vērtēšana",{"$f":"MAX(0, MIN(1,C20/$F$20))","v":{"v":0.1875,"d":"19%"}},{"$f":"MAX(0, MIN(1,D20/$F$20))","v":{"v":0.1875,"d":"19%"}},{"$f":"MAX(0, MIN(1,E20/$F$20))","v":{"v":0.625,"d":"63%"}},{"$f":"SUM(C21:E21)","v":{"v":1,"d":"100%"}}]
[]
["Tabulā Citas izmaksas, sākot ar šūnu pa labi, ievadiet detalizētu informāciju Nākamais norādījums ir šūnā A31.","Citas izmaksas:","Segmenta nosaukums 1","Segmenta nosaukums 2","Segmenta nosaukums 3","Kopā"]
[null,"Klientu iegūšana",{"v":105000,"d":"105,000.00 EUR"},{"v":120000,"d":"120,000.00 EUR"},{"v":235000,"d":"235,000.00 EUR"},{"$f":"SUM(Citas_izmaksas[[#This Row],[Segmenta nosaukums 1]:[Segmenta nosaukums 3]])","v":{"v":460000,"d":"460,000.00 EUR"}}]
[null,"Klientu mārketings",{"v":150000,"d":"150,000.00 EUR"},{"v":125000,"d":"125,000.00 EUR"},{"v":275000,"d":"275,000.00 EUR"},{"$f":"SUM(C25:E25)","v":{"v":550000,"d":"550,000.00 EUR"}}]
[null,"Sadarbības ar klientu pārtraukšana",{"v":80000,"d":"80,000.00 EUR"},{"v":190000,"d":"190,000.00 EUR"},{"v":140000,"d":"140,000.00 EUR"},{"$f":"SUM(C26:E26)","v":{"v":410000,"d":"410,000.00 EUR"}}]
[null,"Pārējo klientu izmaksu kopsavilkums",{"$f":"SUM(C24:C26)","v":{"v":335000,"d":"335,000.00 EUR"}},{"$f":"SUM(D24:D26)","v":{"v":435000,"d":"435,000.00 EUR"}},{"$f":"SUM(E24:E26)","v":{"v":650000,"d":"650,000.00 EUR"}},{"$f":"SUM(F24:F26)","v":{"v":1420000,"d":"1,420,000.00 EUR"}}]
[null,"Klientu ienesīgums pēc segmenta",{"$f":"+C20-C27","v":{"v":-35000,"d":"-35,000.00 EUR"}},{"$f":"+D20-D27","v":{"v":-135000,"d":"-135,000.00 EUR"}},{"$f":"+E20-E27","v":{"v":350000,"d":"350,000.00 EUR"}},{"$f":"SUM(C28:E28)","v":{"v":180000,"d":"180,000.00 EUR"}}]
[null,"Vērtēšana",{"$f":"MAX(0,MIN(1, C28/$F$28))","v":{"v":0,"d":"0%"}},{"$f":"MAX(0,MIN(1, D28/$F$28))","v":{"v":0,"d":"0%"}},{"$f":"MAX(0,MIN(1, E28/$F$28))","v":{"v":1,"d":"100%"}},{"$f":"SUM(C29:E29)","v":{"v":1,"d":"100%"}}]
[]
["Rādītāju kopsavilkums tabula, kas sākas šūnā pa labi, tiek automātiski atjaunināta. Nākamais norādījums ir šūnā A37.","Rādītāju kopsavilkums:","Segmenta nosaukums 1","Segmenta nosaukums 2","Segmenta nosaukums 3","Tendence"]
[null,"Klienta iegūšanas vidējās izmaksas",{"$f":"+C24/C8","v":{"v":52500,"d":"52,500.00 EUR"}},{"$f":"+D24/D8","v":{"v":30000,"d":"30,000.00 EUR"}},{"$f":"+E24/E8","v":{"v":58750,"d":"58,750.00 EUR"}}]
[null,"Sadarbības ar klientu pārtraukšanas vidējās izmaksas",{"$f":"-C26/C9","v":{"v":80000,"d":"80,000.00 EUR"}},{"$f":"-D26/D9","v":{"v":95000,"d":"95,000.00 EUR"}},{"$f":"-E26/E9","v":{"v":70000,"d":"70,000.00 EUR"}}]
[null,"Vidējās mārketinga izmaksas attiecībā uz aktīvu klientu",{"$f":"+C26/Klientu_aktivitāte[[#Totals],[Segmenta nosaukums 1]]","v":{"v":13333.333333333334,"d":"13,333.33 EUR"}},{"$f":"+D25/Klientu_aktivitāte[[#Totals],[Segmenta nosaukums 2]]","v":{"v":12500,"d":"12,500.00 EUR"}},{"$f":"+E25/Klientu_aktivitāte[[#Totals],[Segmenta nosaukums 3]]","v":{"v":27500,"d":"27,500.00 EUR"}}]
[null,"Vidējā peļņa (zaudējumi) attiecībā uz vienu klientu",{"$f":"+C29/Klientu_aktivitāte[[#Totals],[Segmenta nosaukums 1]]","v":{"v":0,"d":"0.00 EUR"}},{"$f":"+D28/Klientu_aktivitāte[[#Totals],[Segmenta nosaukums 2]]","v":{"v":-13500,"d":"-13,500.00 EUR"}},{"$f":"+E28/Klientu_aktivitāte[[#Totals],[Segmenta nosaukums 3]]","v":{"v":35000,"d":"35,000.00 EUR"}}]
[]
["Sagrupētu stabiņu diagramma ar rādītāju kopsavilkums pēc klientu segmenta ir šūnā pa labi.","Šajā šūnā ir sagrupētu stabiņu diagramma ar rādītāju kopsavilkums pēc klientu segmenta."]